fUST/lending_fUST_20241105
["ID","MTS","AMOUNT","RATE_DAILY","PERIOD"]
[341277509,1730740240653,-151.0,0.000331,14]
[341277511,1730740240662,-500.0,0.000331,21]
[341277521,1730740240750,-3000.0,0.0003311,14]
[341277523,1730740240760,-151.0,0.0003311,14]
[341277525,1730740240769,-3000.0,0.0003312,14]
[341277527,1730740240779,-4938.332754,0.0003313,14]
[341277529,1730740240789,-151.0,0.0003313,14]
[341277532,1730740240800,-151.0,0.0003313,14]
[341277534,1730740240809,-151.0,0.0003313,14]
[341277535,1730740240818,-151.0,0.0003313,14]
[341277537,1730740240827,-151.0,0.0003313,14]
[341277540,1730740240836,-523.73,0.00033272,3]
[341277542,1730740240845,-500.0,0.00033272,3]
[341277544,1730740240855,-500.0,0.00033272,3]
[341277546,1730740240864,-500.0,0.00033273,3]
[341277548,1730740240873,-602.27193409,0.00033273,3]
[341277552,1730740240906,-1352.29,0.00030806,3]
[341277838,1730740243330,-441.05486848,0.00030806,3]
[341277841,1730740243341,-1008.6105711,0.00030806,3]
[341279542,1730740260708,1723.41719056,0.0003,2]
[341279917,1730740265059,604.2556504,0.00029517,2]
[341282804,1730740296753,285.16105924,0.00024658,2]
[341282805,1730740304713,3000.0,0.00029397,2]
[341282806,1730740354515,161.898834,0.00029084,2]
[341282812,1730740714234,472.805423,0.00029014,2]
[341282813,1730740714569,472.805423,0.00029699,2]
[341282814,1730740747988,188.822522,0.0002918,2]
[341282816,1730740879795,168.773289,0.00028984,2]
[341282817,1730741002323,42835.40602728,0.000289,2]
[341282821,1730741142806,179.748067,0.00013973,2]
[341282822,1730741143242,179.748067,0.00020447,2]
[341282823,1730741143527,179.748067,0.00026921,2]
[341282825,1730741169672,166.666666,0.0002876,2]
[341282827,1730741198482,573.7725231,0.00029258,2]
[341282828,1730741218531,157.601807,0.00029258,2]
[341282829,1730741218918,157.601807,0.00029943,2]
[341282830,1730741232152,-157.601807,0.00030627,2]
[341282831,1730741232173,-256.20073359,0.00030803,2]
[341282832,1730741240105,-143.79926641,0.00030803,2]
[341282833,1730741240127,-351.34884919,0.00030804,2]
[341282834,1730741240148,-181.95119798,0.00030804,2]
[341282835,1730741240171,-259.82932731,0.00030804,2]
[341282836,1730741240297,-500.0,0.00030804,2]
[341282837,1730741240326,-539.59834633,0.00030804,2]
[341282838,1730741240348,-168.574,0.00030805,27]
[341282839,1730741240370,-500.0,0.00030805,3]
[341282840,1730741240391,-500.0,0.00030805,3]
[341282841,1730741240419,-500.0,0.00030805,3]
[341282842,1730741240440,-500.0,0.00030805,3]
[341282843,1730741240465,-500.0,0.00030805,3]
[341282844,1730741240487,-156.54736167,0.00030805,3]
[341282845,1730741250107,-1093.81825288,0.00030706,2]
[341282846,1730741250128,-343.45263833,0.00030805,3]
[341282847,1730741250149,-347.28563222,0.00030805,2]
[341282848,1730741250171,-241.62158953,0.00030805,2]
[341282849,1730741250192,-500.0,0.00030805,3]
[341282850,1730741250215,-388.68103738,0.00030805,3]
[341282851,1730741251779,7622.5232485,0.00033669,120]
[341282852,1730741304030,7196.28521033,0.0002,2]
[341282853,1730741305888,391.14248831,0.0003,10]
[341282854,1730741315977,1301.74257348,0.000134,2]
[341282855,1730741316724,267.29412941,0.00014114,2]
[341282856,1730741324835,1398.95312178,0.0003,10]
[341282857,1730741325069,2098.55681357,0.0002509,2]
[341282858,1730741326127,1558.58798154,0.00014,2]
[341282864,1730741328522,1036.98353211,0.00025,2]
[341282865,1730741328568,509.13366311,0.00025,2]
[341282866,1730741328595,165.23895468,0.00025,2]
[341282867,1730741328622,203.11605136,0.00025,2]
[341282868,1730741328751,10364.0,0.00025,2]
[341282869,1730741328854,346.15620932,0.00025,2]
[341282870,1730741329822,826.51090414,0.00025,2]
[341282881,1730741415640,170.041654,0.00028872,2]
[341282903,1730741436391,-500.0,0.00030804,3]
[341282905,1730741436401,-500.0,0.00030804,3]
[341282908,1730741436411,-500.0,0.00030804,3]
[341282910,1730741436421,-500.0,0.00030804,3]
[341282912,1730741436431,-1396.08,0.00030804,2]
[341282914,1730741436442,-3603.92,0.00030804,2]
[341282916,1730741436451,-2556.32611333,0.00030804,3]
[341282918,1730741436463,-3130.40388667,0.00030804,3]
[341282920,1730741436472,-500.0,0.00030804,3]
[341282922,1730741436482,-500.0,0.00030804,3]
[341282924,1730741436496,-500.0,0.00030805,3]
[341282926,1730741436505,-500.0,0.00030805,3]
[341282928,1730741436515,-338.34365822,0.00030805,3]
[341282930,1730741436524,-500.0,0.00030805,3]
[341282932,1730741436534,-500.0,0.00030805,3]
[341282934,1730741436544,-1006.49749002,0.00030805,3]
[341282937,1730741436554,-500.0,0.00030805,3]
[341282939,1730741436565,-504.39967006,0.00030805,3]
[341282941,1730741436575,-500.0,0.00030805,3]
[341282943,1730741436584,-500.0,0.00030805,3]
[341282945,1730741436595,-227.56150919,0.00030805,3]
[341282946,1730741436605,-500.0,0.00030805,3]
[341282948,1730741436615,-500.0,0.00030805,3]
[341282950,1730741436628,-500.0,0.00030805,3]
[341282952,1730741436645,-500.0,0.00030805,3]
[341282954,1730741436655,-500.0,0.00030805,3]
[341282956,1730741436665,-500.0,0.00030805,3]
[341282958,1730741436675,-500.0,0.00030805,3]
[341282960,1730741436685,-500.0,0.00030805,3]
[341282962,1730741436695,-5000.0,0.00030805,2]
[341282964,1730741436705,-236.79055648,0.00030806,3]
[341282966,1730741436715,-500.0,0.00030806,3]
[341282968,1730741436725,-164.22759084,0.00030806,3]
[341282970,1730741436735,-517.04254824,0.00030806,3]
[341282972,1730741436748,-500.0,0.00030806,3]
[341282974,1730741436759,-500.0,0.00030806,3]
[341282976,1730741436769,-500.0,0.00030806,3]
[341282978,1730741436780,-500.0,0.00030806,3]
[341282980,1730741436792,-502.27446551,0.00030806,3]
[341282982,1730741436803,-500.0,0.00030806,3]
[341282984,1730741436813,-500.0,0.00030806,3]
[341282986,1730741436823,-500.0,0.00030806,3]
[341282988,1730741436833,-500.0,0.00030806,3]
[341282990,1730741436843,-500.0,0.00030806,3]
[341282992,1730741436853,-500.0,0.00030806,3]
[341282994,1730741436863,-500.0,0.00030806,3]
[341282996,1730741436873,-500.0,0.00030806,3]
[341282998,1730741436884,-500.0,0.00030806,3]
[341283000,1730741436894,-500.0,0.00030806,2]
[341283002,1730741436904,-500.0,0.00030806,3]
[341283004,1730741436914,-500.0,0.00030806,3]
[341283006,1730741436924,-500.0,0.00030806,3]
[341283008,1730741436934,-500.0,0.00030806,3]
[341283010,1730741436943,-259.18915444,0.00030806,3]
[341283011,1730741436955,-500.0,0.00030806,3]
[341283013,1730741436965,-500.0,0.00030806,3]
[341283015,1730741436976,-500.0,0.00030806,3]
[341283018,1730741436990,-500.0,0.00030806,3]
[341283020,1730741437000,-500.0,0.00030806,3]
[341283022,1730741437010,-473.24910883,0.00030806,3]
[341283024,1730741437021,-500.0,0.00030806,3]
[341283026,1730741437031,-500.0,0.00030806,3]
[341283028,1730741437043,-500.0,0.00030806,3]
[341283030,1730741437053,-639.01998798,0.00030806,3]
[341283032,1730741437063,-500.0,0.00030806,3]
[341283034,1730741437072,-500.0,0.00030806,3]
[341283036,1730741437083,-500.0,0.00030806,3]
[341283038,1730741437093,-500.0,0.00030806,3]
[341283039,1730741437102,-162.61811967,0.00030806,7]
[341283042,1730741437116,-500.0,0.00030807,3]
[341283044,1730741437128,-500.0,0.00030807,3]
[341283046,1730741437141,-500.0,0.00031078,3]
[341283049,1730741437154,-500.0,0.00031078,3]
[341283051,1730741437166,-500.0,0.00031078,3]
[341283053,1730741437178,-500.0,0.00031078,3]
[341283055,1730741437188,-500.0,0.00031078,3]
[341283058,1730741437199,-5000.0,0.00031078,2]
[341283060,1730741437209,-5000.0,0.00031078,2]
[341283062,1730741437221,-5686.73,0.00031078,3]
[341283064,1730741437232,-500.0,0.00031078,3]
[341283066,1730741437243,-500.0,0.00031079,3]
[341283068,1730741437255,-500.0,0.00031079,3]
[341283069,1730741437268,-378.26427572,0.00031079,3]
[341283070,1730741437282,-500.0,0.00031079,3]
[341283071,1730741437293,-500.0,0.00031079,3]
[341283072,1730741437304,-506.17520758,0.00031079,3]
[341283073,1730741437316,-500.0,0.00031079,3]
[341283074,1730741437328,-505.64486018,0.00031079,3]
[341283075,1730741437340,-500.0,0.00031079,3]
[341283076,1730741437351,-500.0,0.00031079,3]
[341283077,1730741437363,-500.0,0.00031079,3]
[341283078,1730741437374,-500.0,0.00031079,3]
[341283079,1730741437385,-500.0,0.00031079,3]
[341283080,1730741437396,-500.0,0.00031079,3]
[341283081,1730741437407,-515.97313162,0.00031079,3]
[341283082,1730741437418,-500.0,0.00031079,3]
[341283083,1730741437429,-500.0,0.00031079,3]
[341283084,1730741437439,-577.15982732,0.00031079,3]
[341283086,1730741437448,-500.0,0.00031079,3]
[341283088,1730741437460,-507.80824063,0.00031079,3]
[341283091,1730741437470,-387.79269023,0.00031079,3]
[341283093,1730741437487,-112.20730977,0.00031079,3]
[341283095,1730741437498,-368.4622671,0.00031079,3]
[341283097,1730741437509,-500.0,0.00031079,3]
[341283100,1730741437520,-500.0,0.00031079,3]
[341283102,1730741437532,-500.0,0.00031079,3]
[341283104,1730741437543,-296.78287785,0.00031079,3]
[341283106,1730741437555,-460.38545593,0.00031079,3]
[341283108,1730741437565,-62.33989979,0.00031079,3]
[341283111,1730741437580,-444.15654044,0.00031079,3]
[341283113,1730741437590,-500.0,0.00031079,3]
[341283115,1730741437600,-505.36116667,0.00031079,3]
[341283117,1730741437610,-500.0,0.00031079,3]
[341283119,1730741437619,-500.0,0.00031079,3]
[341283122,1730741437630,-500.0,0.00031079,3]
[341283124,1730741437641,-509.2517265,0.00031079,3]
[341283126,1730741437651,-516.59160654,0.00031079,3]
[341283128,1730741437662,-500.0,0.00031079,3]
[341283130,1730741437673,-500.0,0.00031079,3]
[341283133,1730741437683,-500.0,0.00031079,3]
[341283135,1730741437694,-500.0,0.00031079,3]
[341283137,1730741437705,-395.41724537,0.00031079,3]
[341283139,1730741437717,-407.71174033,0.00031079,3]
[341283142,1730741437730,-92.28825967,0.00031079,3]
[341283144,1730741437741,-180.24,0.0003108,3]
[341283146,1730741437752,-500.0,0.0003108,3]
[341283148,1730741437764,-500.0,0.0003108,3]
[341283151,1730741437775,-500.0,0.0003108,3]
[341283153,1730741437787,-500.0,0.0003108,3]
[341283155,1730741437798,-500.0,0.0003108,3]
[341283157,1730741437809,-500.0,0.0003108,3]
[341283160,1730741437821,-500.0,0.0003108,3]
[341283162,1730741437831,-500.0,0.0003108,3]
[341283164,1730741437842,-500.0,0.0003108,3]
[341283166,1730741437852,-500.0,0.0003108,3]
[341283168,1730741437862,-500.0,0.0003108,3]
[341283170,1730741437873,-470.46470394,0.0003108,2]
[341283256,1730741438626,-29.53529606,0.0003108,2]
[341283258,1730741438637,-500.0,0.0003108,3]
[341283261,1730741438649,-500.0,0.0003108,3]
[341283263,1730741438660,-203.88502735,0.0003108,3]
[341283265,1730741438671,-500.0,0.0003108,3]
[341283267,1730741438682,-285.30967659,0.00031081,3]
[341283280,1730741438798,-214.69032341,0.00031081,3]
[341283282,1730741438809,-196.16,0.00031342,10]
[341283285,1730741438818,-302.08,0.00031343,3]
[341283287,1730741438828,-500.0,0.00031352,3]
[341283289,1730741438838,-500.0,0.00031352,3]
[341283291,1730741438851,-500.0,0.00031352,3]
[341283293,1730741438861,-500.0,0.00031352,3]
[341283295,1730741438871,-2666.9787896,0.00031352,2]
[341283297,1730741438882,-5686.73,0.00031352,3]
[341283300,1730741438894,-500.0,0.00031352,3]
[341283302,1730741438905,-505.88502332,0.00031353,3]
[341283304,1730741438915,-510.93147953,0.00031353,3]
[341283306,1730741438926,-508.37785073,0.00031353,3]
[341283308,1730741438936,-500.0,0.00031353,3]
[341283310,1730741438946,-500.0,0.00031353,3]
[341283312,1730741438956,-500.0,0.00031353,3]
[341283314,1730741438966,-500.0,0.00031353,3]
[341283316,1730741438977,-508.5509314,0.00031353,3]
[341283319,1730741438990,-500.0,0.00031353,3]
[341283321,1730741439001,-612.42482215,0.00031354,2]
[341283323,1730741439011,-500.0,0.00031354,3]
[341283325,1730741439022,-500.0,0.00031354,3]
[341283327,1730741439033,-500.0,0.00031355,3]
[341283329,1730741439043,-500.0,0.00031626,3]
[341283332,1730741439054,-500.0,0.00031626,3]
[341283334,1730741439064,-500.0,0.00031626,3]
[341283336,1730741439075,-5686.73,0.00031626,3]
[341283338,1730741439085,-500.0,0.00031626,3]
[341283340,1730741439096,-500.0,0.00031627,3]
[341283342,1730741439107,-500.0,0.00031627,3]
[341283344,1730741439117,-500.0,0.00031627,3]
[341283346,1730741439127,-500.0,0.00031627,3]
[341283348,1730741439138,-500.0,0.00031628,3]
[341283351,1730741439149,-500.0,0.00031628,3]
[341283364,1730741439261,-500.0,0.00031629,3]
[341283366,1730741439276,-500.0,0.000319,3]
[341283368,1730741439286,-269.88623047,0.000319,3]
[341283370,1730741439295,-500.0,0.000319,3]
[341283372,1730741439305,-2705.45307435,0.000319,3]
[341283375,1730741439318,-1169.62442848,0.000319,3]
[341283384,1730741439401,-1811.65249717,0.000319,3]
[341283386,1730741439411,-500.0,0.000319,3]
[341283388,1730741439420,-500.0,0.00031901,3]
[341283390,1730741439429,-500.0,0.00031901,3]
[341283391,1730741439442,-500.0,0.00031901,3]
[341283393,1730741439452,-500.0,0.00031901,3]
[341283395,1730741439461,-500.0,0.00031902,3]
[341283398,1730741439471,-500.0,0.00031902,3]
[341283399,1730741439483,-541.63295358,0.00031903,3]
[341283401,1730741439493,-500.0,0.00032174,3]
[341283404,1730741439504,-500.0,0.00032174,3]
[341283406,1730741439513,-5686.73,0.00032174,3]
[341283408,1730741439522,-500.0,0.00032174,3]
[341283410,1730741439534,-500.0,0.00032175,3]
[341283412,1730741439543,-500.0,0.00032175,3]
[341283414,1730741439552,-500.0,0.00032175,3]
[341283416,1730741439561,-500.0,0.00032175,3]
[341283418,1730741439571,-500.0,0.00032176,3]
[341283420,1730741439580,-500.0,0.00032176,3]
[341283422,1730741439589,-500.0,0.00032448,3]
[341283424,1730741439600,-500.0,0.00032448,3]
[341283426,1730741439609,-5686.73,0.00032448,3]
[341283428,1730741439618,-500.0,0.00032448,3]
[341283430,1730741439627,-500.0,0.00032449,3]
[341283432,1730741439636,-500.0,0.00032449,3]
[341283434,1730741439646,-151.0,0.00032449,7]
[341283436,1730741439654,-151.0,0.00032449,7]
[341283438,1730741439664,-567.13435744,0.00032449,3]
[341283440,1730741439673,-151.0,0.00032449,7]
[341283442,1730741439683,-151.0,0.00032449,7]
[341283444,1730741439693,-151.0,0.00032449,7]
[341283446,1730741439702,-151.0,0.00032449,7]
[341283448,1730741439712,-500.0,0.00032449,3]
[341283450,1730741439722,-151.0,0.00032449,7]
[341283452,1730741439731,-151.0,0.00032449,7]
[341283454,1730741439740,-500.0,0.0003245,3]
[341283456,1730741439749,-151.0,0.0003245,7]
[341283458,1730741439759,-151.0,0.0003245,7]
[341283460,1730741439768,-151.0,0.0003245,7]
[341283462,1730741439778,-151.0,0.0003245,7]
[341283464,1730741439788,-239.184415,0.0003245,7]
[341283466,1730741439798,-151.0,0.0003245,7]
[341283468,1730741439808,-500.0,0.0003245,3]
[341283470,1730741439817,-157.954,0.0003245,31]
[341283472,1730741439826,-500.0,0.00032722,3]
[341283474,1730741439836,-500.0,0.00032722,3]
[341283476,1730741439848,-5686.73,0.00032722,3]
[341283478,1730741439858,-500.0,0.00032722,3]
[341283480,1730741439867,-151.0,0.00032723,7]
[341283482,1730741439877,-151.0,0.00032723,7]
[341283484,1730741439887,-151.0,0.00032723,7]
[341283486,1730741439897,-500.0,0.00032723,3]
[341283488,1730741439908,-241.78511609,0.00032723,3]
[341283491,1730741439919,-500.0,0.00032723,3]
[341283493,1730741439928,-500.0,0.00032724,3]
[341283494,1730741439938,-500.0,0.00032724,3]
[341283497,1730741439949,-12766.83554327,0.000328,30]
[341283499,1730741439958,-500.0,0.00032876,7]
[341283501,1730741439968,-167.679168,0.00032877,120]
[341283503,1730741439978,-500.0,0.00032996,3]
[341283505,1730741439987,-500.0,0.00032996,3]
[341283507,1730741439997,-5686.73,0.00032996,3]
[341283509,1730741440008,-500.0,0.00032996,3]
[341283511,1730741440017,-285.76669961,0.00032997,3]
[341283513,1730741440026,-151.0,0.00032997,14]
[341283515,1730741440036,-500.0,0.00032997,3]
[341283517,1730741440046,-151.0,0.00032997,14]
[341283519,1730741440055,-151.0,0.00032998,14]
[341283521,1730741440064,-500.0,0.00032998,3]
[341283523,1730741440073,-500.0,0.00032998,3]
[341283526,1730741440083,-151.0,0.0003313,14]
[341283528,1730741440093,-150.0,0.000332,15]
[341283530,1730741440102,-500.0,0.000332,21]
[341283532,1730741440111,-325.1001732,0.0003327,2]
[341283534,1730741440121,-500.0,0.0003327,3]
[341283536,1730741440130,-500.0,0.0003327,3]
[341283538,1730741440139,-5686.73,0.0003327,3]
[341283540,1730741440148,-500.0,0.0003327,3]
[341283542,1730741440158,-248.7689283,0.00033271,14]
[341283544,1730741440168,-151.0,0.00033271,14]
[341283546,1730741440179,-151.0,0.00033271,14]
[341283549,1730741440189,-151.0,0.00033271,14]
[341283551,1730741440198,-151.0,0.00033271,14]
[341283553,1730741440209,-165.765743,0.00033271,14]
[341283555,1730741440219,-151.0,0.00033271,14]
[341283557,1730741440228,-151.0,0.00033271,14]
[341283558,1730741440237,-151.0,0.00033271,14]
[341283561,1730741440247,-500.0,0.00033271,3]
[341283563,1730741440256,-500.0,0.00033272,3]
[341283564,1730741440266,-500.0,0.00033272,3]
[341283566,1730741440275,-179.748067,0.00033396,2]
[341283568,1730741440284,-191.9,0.000334,31]
[341283570,1730741440294,-191.9,0.000334,31]
[341283573,1730741440304,-191.9,0.000334,31]
[341283575,1730741440315,-191.9,0.000334,31]
[341283577,1730741440324,-191.9,0.000334,31]
[341283579,1730741440334,-191.9,0.000334,31]
[341283581,1730741440344,-191.9,0.000334,31]
[341283583,1730741440353,-191.9,0.000334,31]
[341283585,1730741440363,-191.9,0.000334,31]
[341283587,1730741440373,-191.9,0.000334,31]
[341283589,1730741440383,-191.9,0.000334,31]
[341283591,1730741440392,-191.9,0.000334,31]
[341283593,1730741440402,-500.0,0.00033544,3]
[341283595,1730741440412,-500.0,0.00033544,3]
[341283597,1730741440423,-5686.73,0.00033544,3]
[341283599,1730741440433,-500.0,0.00033544,3]
[341283601,1730741440442,-500.0,0.00033545,3]
[341283603,1730741440451,-500.0,0.00033546,3]
[341283605,1730741440461,-500.0,0.00033546,3]
[341283607,1730741440471,-500.0,0.00033698,10]
[341283609,1730741440481,-1892.23,0.000337,2]
[341283611,1730741440491,-157.963,0.00033803,120]
[341283613,1730741440501,-500.0,0.00033818,3]
[341283615,1730741440512,-500.0,0.00033818,3]
[341283617,1730741440521,-5686.73,0.00033818,3]
[341283619,1730741440531,-459.22971258,0.00033818,3]
[341283621,1730741440540,-151.0,0.00033819,14]
[341283623,1730741440550,-153.140399,0.00033819,14]
[341283625,1730741440559,-500.0,0.00033819,3]
[341283627,1730741440568,-151.0,0.0003382,14]
[341283629,1730741440580,-500.0,0.0003382,3]
[341283631,1730741440590,-151.0,0.0003382,14]
[341283633,1730741440599,-151.0,0.0003382,14]
[341283635,1730741440609,-500.0,0.0003382,3]
[341283637,1730741440619,-3349.77,0.00033972,120]
[341283639,1730741440628,-1000.0,0.00033994,2]
[341283641,1730741440638,-150.0,0.00034,2]
[341283643,1730741440647,-500.0,0.00034092,3]
[341283646,1730741440657,-500.0,0.00034092,3]
[341283648,1730741440666,-5686.73,0.00034092,3]
[341283650,1730741440675,-151.0,0.00034093,14]
[341283652,1730741440685,-151.0,0.00034093,14]
[341283654,1730741440695,-151.0,0.00034093,14]
[341283656,1730741440704,-151.0,0.00034093,14]
[341283658,1730741440713,-500.0,0.00034093,3]
[341283660,1730741440723,-500.0,0.00034094,3]
[341283662,1730741440732,-151.0,0.00034094,14]
[341283664,1730741440741,-151.0,0.00034094,14]
[341283666,1730741440751,-151.0,0.00034094,14]
[341283668,1730741440760,-500.0,0.00034094,3]
[341283669,1730741440769,-500.0,0.000342,23]
[341283671,1730741440778,-443.65690196,0.00034366,3]
[341283673,1730741440790,-500.0,0.00034366,3]
[341283675,1730741440799,-5686.73,0.00034366,3]
[341283678,1730741440809,-500.0,0.00034367,3]
[341283679,1730741440819,-500.0,0.00034368,3]
[341283682,1730741440829,-500.0,0.00034368,3]
[341283684,1730741440839,-237.97452619,0.00034519,2]
[341283686,1730741440848,-570.62303745,0.00034519,2]
[341283688,1730741440858,-160.03702301,0.0003452,13]
[341283690,1730741440867,-406.24503598,0.0003464,3]
[341283692,1730741440876,-5686.73,0.0003464,3]
[341283694,1730741440886,-500.0,0.00034641,3]
[341283696,1730741440895,-500.0,0.00034642,3]
[341283698,1730741440904,-500.0,0.00034642,3]
[341283700,1730741440913,-151.0,0.000347,14]
[341283702,1730741440923,-191.9,0.000347,31]
[341283704,1730741440932,-191.9,0.000347,31]
[341283706,1730741440942,-191.9,0.000347,31]
[341283708,1730741440952,-191.9,0.000347,31]
[341283710,1730741440961,-191.9,0.000347,31]
[341283712,1730741440971,-191.9,0.000347,31]
[341283714,1730741440981,-191.9,0.000347,31]
[341283716,1730741440991,-191.9,0.000347,31]
[341283718,1730741441001,-191.9,0.000347,31]
[341283720,1730741441011,-191.9,0.000347,31]
[341283722,1730741441021,-191.9,0.000347,31]
[341283724,1730741441030,-191.9,0.000347,31]
[341283726,1730741441041,-191.9,0.000347,31]
[341283728,1730741441050,-191.9,0.000347,31]
[341283730,1730741441060,-191.9,0.000347,31]
[341283732,1730741441070,-191.9,0.000347,31]
[341283734,1730741441080,-191.9,0.000347,31]
[341283736,1730741441090,-191.9,0.000347,31]
[341283738,1730741441099,-191.9,0.000347,31]
[341283740,1730741441108,-191.9,0.000347,31]
[341283741,1730741441119,-191.9,0.000347,31]
[341283742,1730741441129,-191.9,0.000347,31]
[341283743,1730741441138,-191.9,0.000347,31]
[341283744,1730741441148,-191.9,0.000347,31]
[341283745,1730741441157,-151.0,0.000347,14]
[341283746,1730741441168,-151.0,0.000347,14]
[341283747,1730741441178,-500.0,0.00034794,4]
[341283748,1730741441188,-1000.0,0.000348,3]
[341283749,1730741441197,-1989.22249063,0.00034914,3]
[341284066,1730741443794,-500.0,0.00030803,2]
[341284070,1730741443805,-500.0,0.00030803,2]
[341284073,1730741443815,-160.46243283,0.00030803,2]
[341284076,1730741443824,-500.0,0.00030803,2]
[341284080,1730741443834,-540.76360326,0.00030803,2]
[341284083,1730741443845,-500.0,0.00030803,2]
[341284086,1730741443854,-325.93370563,0.00031079,3]
[341284089,1730741443865,-3697.50750937,0.00034914,3]
[341284092,1730741443875,-500.0,0.00034915,3]
[341284094,1730741443885,-500.0,0.00034916,3]
[341284097,1730741443895,-500.0,0.00034916,3]
[341284100,1730741443905,-1417.31768133,0.00034931,120]
[341284550,1730741446782,-323.87323893,0.00034931,120]
[341284552,1730741446794,-1608.57907974,0.00034931,120]
[341284554,1730741446803,-150.65561179,0.00034968,2]
[341284556,1730741446812,-270.99530847,0.00035,10]
[341285746,1730741459862,698.7182748,0.0003,2]
[341285979,1730741462115,185.692,0.0002055,2]
[341288045,1730741545917,158.0,0.0003,2]
[341288046,1730741646491,158.0,0.0003,2]
[341288048,1730741725742,195.37636754,0.0003,7]
[341288049,1730741769281,210.043155,0.00013973,2]
[341288050,1730741769545,210.043155,0.00020447,2]
[341288051,1730741769781,210.043155,0.00026921,2]
[341288053,1730741807484,24900.0,0.00029248,2]
[341288054,1730741965495,165.441126,0.00029269,2]
[341288055,1730741965672,165.441126,0.00029278,2]
[341288056,1730741965886,165.441126,0.00029287,2]
[341288057,1730741966347,165.441126,0.00029296,2]
[341288058,1730741966557,165.441126,0.00029306,2]
[341288059,1730741966803,165.441126,0.00029315,2]
[341288060,1730741967050,165.441126,0.00029324,2]
[341288061,1730741967261,165.441126,0.00029333,2]
[341288062,1730741967470,165.441126,0.00029342,2]
[341288063,1730741967685,165.441126,0.00029351,2]
[341288064,1730741967906,165.441126,0.00029361,2]
[341288065,1730741968130,165.441126,0.0002937,2]
[341288066,1730741968567,165.441126,0.00029379,2]
[341288067,1730741968833,165.441126,0.00029388,2]
[341288068,1730741969023,165.441126,0.00029397,2]
[341288069,1730741969255,165.441126,0.00029406,2]
[341288070,1730741969452,165.441126,0.00029415,2]
[341288073,1730742020641,2200.139738,0.00029126,2]
[341288074,1730742020952,2200.139738,0.0002981,2]
[341288075,1730742042940,676.132192,0.00029149,2]
[341288076,1730742046544,162.0,0.00027,2]
[341288077,1730742046921,162.0,0.00028767,2]
[341288078,1730742046992,456.0,0.00027,2]
[341288079,1730742047330,456.0,0.00027671,2]
[341288080,1730742047705,456.0,0.00028767,2]
[341288081,1730742047783,194.311072,0.00028875,2]
[341288082,1730742150735,3000.0,0.00029227,2]
[341288083,1730742275179,253.5096374,0.00013973,2]
[341288085,1730742278040,169.673,0.00028772,2]
[341288087,1730742344617,1935.9068935,0.00029328,2]
[341288088,1730742374955,24900.0,0.00029289,2]
[341288089,1730742428163,-460.0,0.00030205,2]
[341288090,1730742428184,-191.98488344,0.00030395,2]